[Event "Early-Titled-Tuesday-Blitz-April-23-2024"]
[Site "Chess.com"]
[Date "2024.04.23"]
[Round "1"]
[White "Firouzja2003"]
[Black "ragnaroek66"]
[Result "1-0"]
[WhiteElo "3057"]
[BlackElo "2545"]
[TimeControl "180+1"]
[EndTime "8:08:25 PDT"]
[Termination "Firouzja2003 won by resignation"]

1. e4 {[%clk 0:02:57.6]} 1... c6 {[%clk 0:03:00]} 2. Nf3 {[%clk 0:02:56.7]} 2...
d5 {[%clk 0:03:00.9]} 3. Nc3 {[%clk 0:02:56.6]} 3... Bg4 {[%clk 0:03:00.8]} 4.
h3 {[%clk 0:02:55.9]} 4... Bxf3 {[%clk 0:03:01.4]} 5. Qxf3 {[%clk 0:02:56.4]}
5... e6 {[%clk 0:03:02.2]} 6. g3 {[%clk 0:02:55.5]} 6... Nd7 {[%clk 0:03:00.6]}
7. Bg2 {[%clk 0:02:55.8]} 7... Ngf6 {[%clk 0:02:57]} 8. O-O {[%clk 0:02:54.7]}
8... Bb4 {[%clk 0:02:56.5]} 9. d3 {[%clk 0:02:48.8]} 9... O-O {[%clk 0:02:50.2]}
10. Qe2 {[%clk 0:02:48]} 10... Bxc3 {[%clk 0:02:47.4]} 11. bxc3 {[%clk
0:02:47.6]} 11... dxe4 {[%clk 0:02:48.1]} 12. dxe4 {[%clk 0:02:48]} 12... Qa5
{[%clk 0:02:47.7]} 13. Bd2 {[%clk 0:02:34.1]} 13... Qc5 {[%clk 0:02:42.2]} 14.
Rab1 {[%clk 0:02:33.1]} 14... b5 {[%clk 0:02:30.1]} 15. Kh2 {[%clk 0:02:27.2]}
15... Nb6 {[%clk 0:02:24.3]} 16. Rb4 {[%clk 0:02:21.2]} 16... Nc4 {[%clk
0:02:13.5]} 17. Bf4 {[%clk 0:02:12.3]} 17... a5 {[%clk 0:02:11]} 18. Rbb1 {[%clk
0:02:12.1]} 18... Rfd8 {[%clk 0:01:55.2]} 19. Rbd1 {[%clk 0:02:11.9]} 19... h6
{[%clk 0:01:54.6]} 20. Rd3 {[%clk 0:02:07.3]} 20... Qa3 {[%clk 0:01:45]} 21.
Rfd1 {[%clk 0:02:01.5]} 21... Qe7 {[%clk 0:01:35.2]} 22. Bc1 {[%clk 0:01:48]}
22... a4 {[%clk 0:01:24.3]} 23. f4 {[%clk 0:01:38.5]} 23... e5 {[%clk
0:01:22.3]} 24. f5 {[%clk 0:01:38]} 24... Nd7 {[%clk 0:01:16.8]} 25. Qf2 {[%clk
0:01:34.8]} 25... f6 {[%clk 0:01:11]} 26. g4 {[%clk 0:01:33.8]} 26... Nf8 {[%clk
0:01:03.7]} 27. h4 {[%clk 0:01:31.2]} 27... Rd7 {[%clk 0:00:54.5]} 28. Rg1
{[%clk 0:01:21.3]} 28... Rad8 {[%clk 0:00:52.4]} 29. Bf1 {[%clk 0:01:21.7]}
29... Nh7 {[%clk 0:00:51.7]} 30. Be2 {[%clk 0:01:13.5]} 30... Kh8 {[%clk
0:00:44.6]} 31. Kg3 {[%clk 0:01:12.3]} 31... Qf7 {[%clk 0:00:41.9]} 32. Rgd1
{[%clk 0:01:04.2]} 32... Nd6 {[%clk 0:00:41]} 33. Kf3 {[%clk 0:01:01.6]} 33...
Qxa2 {[%clk 0:00:39.2]} 34. Qc5 {[%clk 0:00:53.9]} 34... Qxc2 {[%clk 0:00:29.1]}
35. Rxd6 {[%clk 0:00:43.3]} 35... Rxd6 {[%clk 0:00:28.4]} 36. Rxd6 {[%clk
0:00:44.2]} 36... Rxd6 {[%clk 0:00:28.8]} 37. Qxd6 {[%clk 0:00:45.1]} 37... Qxc1
{[%clk 0:00:29.4]} 38. Qd8+ {[%clk 0:00:45.3]} 38... Nf8 {[%clk 0:00:30]} 39.
Qxf8+ {[%clk 0:00:45.6]} 39... Kh7 {[%clk 0:00:30.9]} 40. Qf7 {[%clk 0:00:23.3]}
40... a3 {[%clk 0:00:30.8]} 41. g5 {[%clk 0:00:20.2]} 41... hxg5 {[%clk
0:00:27.2]} 42. Qg6+ {[%clk 0:00:15.5]} 42... Kg8 {[%clk 0:00:24.3]} 43. h5
{[%clk 0:00:10.6]} 43... Qf4+ {[%clk 0:00:20.1]} 44. Kg2 {[%clk 0:00:10.9]}
44... Qxe4+ {[%clk 0:00:20.2]} 45. Bf3 {[%clk 0:00:11.5]} 45... Qc2+ {[%clk
0:00:20.4]} 46. Kg3 {[%clk 0:00:10.9]} 46... Kf8 {[%clk 0:00:17.2]} 47. h6
{[%clk 0:00:10.5]} 47... gxh6 {[%clk 0:00:17.1]} 48. Qxf6+ {[%clk 0:00:11]}
48... Kg8 {[%clk 0:00:16.8]} 49. Qg6+ {[%clk 0:00:11]} 49... Kf8 {[%clk
0:00:17.4]} 50. Qxh6+ {[%clk 0:00:11.3]} 50... Ke7 {[%clk 0:00:18]} 51. Qe6+
{[%clk 0:00:11]} 51... Kf8 {[%clk 0:00:18.5]} 52. Qf6+ {[%clk 0:00:10.9]} 52...
Kg8 {[%clk 0:00:18.4]} 53. Qxg5+ {[%clk 0:00:11.3]} 53... Kf8 {[%clk 0:00:18.7]}
54. Qf6+ {[%clk 0:00:09]} 54... Kg8 {[%clk 0:00:19.2]} 55. Qe6+ {[%clk
0:00:09.1]} 55... Kf8 {[%clk 0:00:19.1]} 56. Qd6+ {[%clk 0:00:07.7]} 56... Kg8
{[%clk 0:00:19.3]} 57. Qe6+ {[%clk 0:00:04.3]} 57... Kf8 {[%clk 0:00:19.6]} 58.
f6 {[%clk 0:00:04.8]} 58... Qg6+ {[%clk 0:00:19]} 59. Kf2 {[%clk 0:00:05.2]}
59... a2 {[%clk 0:00:18.6]} 60. Qxa2 {[%clk 0:00:03]} 60... Qxf6 {[%clk
0:00:18.3]} 61. Qa8+ {[%clk 0:00:03.7]} 61... Kg7 {[%clk 0:00:18.4]} 62. Qxc6
{[%clk 0:00:04.3]} 62... Qg5 {[%clk 0:00:17.1]} 63. Qd7+ {[%clk 0:00:03.8]}
63... Kh6 {[%clk 0:00:17.1]} 64. Qh3+ {[%clk 0:00:03.4]} 64... Kg7 {[%clk
0:00:17.8]} 65. Qg4 {[%clk 0:00:03.8]} 65... Kf6 {[%clk 0:00:18.4]} 66. Qxg5+
{[%clk 0:00:04]} 66... Kxg5 {[%clk 0:00:19.3]} 67. Ke3 {[%clk 0:00:04.5]} 67...
Kf6 {[%clk 0:00:19.9]} 68. Be2 {[%clk 0:00:04.9]} 68... Ke6 {[%clk 0:00:20.8]}
69. Bxb5 {[%clk 0:00:05.4]} 69... Kd5 {[%clk 0:00:21.7]} 70. Bd3 {[%clk
0:00:06.1]} 70... Kc5 {[%clk 0:00:22.6]} 71. Ke4 {[%clk 0:00:06.4]} 71... Kd6
{[%clk 0:00:22.8]} 72. c4 {[%clk 0:00:07.1]} 72... Kc5 {[%clk 0:00:23.7]} 73.
Kxe5 {[%clk 0:00:07.2]} 1-0

[Event "Early-Titled-Tuesday-Blitz-April-23-2024"]
[Site "Chess.com"]
[Date "2024.04.23"]
[Round "1"]
[White "Rdeux42"]
[Black "AradNazari"]
[Result "0-1"]
[WhiteElo "2401"]
[BlackElo "2719"]
[TimeControl "180+1"]
[EndTime "8:08:25 PDT"]
[Termination "AradNazari won on time"]

1. e4 {[%clk 0:03:00.9]} 1... c5 {[%clk 0:02:57.3]} 2. Nf3 {[%clk 0:03:01.3]}
2... d6 {[%clk 0:02:57.8]} 3. Bb5+ {[%clk 0:03:01.2]} 3... Nd7 {[%clk
0:02:57.6]} 4. Ba4 {[%clk 0:03:01.3]} 4... Nf6 {[%clk 0:02:56.2]} 5. O-O {[%clk
0:03:01.8]} 5... e6 {[%clk 0:02:56.2]} 6. d4 {[%clk 0:03:00.8]} 6... cxd4 {[%clk
0:02:55.5]} 7. Qxd4 {[%clk 0:03:01.7]} 7... Be7 {[%clk 0:02:53.7]} 8. c4 {[%clk
0:02:48.5]} 8... O-O {[%clk 0:02:53.7]} 9. Nc3 {[%clk 0:02:46.4]} 9... a6 {[%clk
0:02:47.7]} 10. Rd1 {[%clk 0:02:45.9]} 10... Qc7 {[%clk 0:02:47.1]} 11. Bxd7
{[%clk 0:02:44.4]} 11... Bxd7 {[%clk 0:02:44]} 12. Bf4 {[%clk 0:02:44.9]} 12...
Rfd8 {[%clk 0:01:32.6]} 13. Bxd6 {[%clk 0:02:39.7]} 13... Bxd6 {[%clk
0:01:32.8]} 14. Qxd6 {[%clk 0:02:37.2]} 14... Qxc4 {[%clk 0:01:32.2]} 15. Ne5
{[%clk 0:02:31.4]} 15... Qc8 {[%clk 0:01:19]} 16. g4 {[%clk 0:01:42.3]} 16... h6
{[%clk 0:01:08.5]} 17. h4 {[%clk 0:01:41.1]} 17... Be8 {[%clk 0:00:40.4]} 18.
Qe7 {[%clk 0:01:35.8]} 18... Qb8 {[%clk 0:00:37.8]} 19. f4 {[%clk 0:01:25.6]}
19... b5 {[%clk 0:00:33.4]} 20. g5 {[%clk 0:01:23.4]} 20... hxg5 {[%clk
0:00:26.2]} 21. hxg5 {[%clk 0:01:22.3]} 21... Nh5 {[%clk 0:00:22.3]} 22. g6
{[%clk 0:01:14.9]} 22... fxg6 {[%clk 0:00:20.7]} 23. Qxe6+ {[%clk 0:01:09.4]}
23... Kh7 {[%clk 0:00:21.2]} 24. Nd5 {[%clk 0:01:04.2]} 24... Qa7+ {[%clk
0:00:13.5]} 25. Kf1 {[%clk 0:00:39.7]} 25... Rxd5 {[%clk 0:00:13.5]} 26. exd5
{[%clk 0:00:34.9]} 26... Qe3 {[%clk 0:00:13.5]} 27. Qg4 {[%clk 0:00:31]} 27...
b4 {[%clk 0:00:11.6]} 28. Kg2 {[%clk 0:00:16.2]} 28... Nxf4+ {[%clk 0:00:11.5]}
29. Kh2 {[%clk 0:00:16.5]} 29... Qxe5 {[%clk 0:00:11.6]} 30. Qg3 {[%clk
0:00:14.7]} 30... Qe2+ {[%clk 0:00:11.1]} 31. Kg1 {[%clk 0:00:12.7]} 31... g5
{[%clk 0:00:11.3]} 32. Re1 {[%clk 0:00:11.4]} 32... Qh5 {[%clk 0:00:08.5]} 33.
Qh2 {[%clk 0:00:08.3]} 33... Qxh2+ {[%clk 0:00:06.4]} 34. Kxh2 {[%clk
0:00:09.2]} 34... Rd8 {[%clk 0:00:06.5]} 35. Rad1 {[%clk 0:00:09.5]} 35... Bh5
{[%clk 0:00:06.4]} 36. Rd4 {[%clk 0:00:08.4]} 36... Rxd5 {[%clk 0:00:06.9]} 37.
Rxd5 {[%clk 0:00:08]} 37... Nxd5 {[%clk 0:00:07.8]} 38. Re5 {[%clk 0:00:07.3]}
38... Bf7 {[%clk 0:00:06.9]} 39. Rxg5 {[%clk 0:00:06.9]} 39... g6 {[%clk
0:00:05.4]} 40. a3 {[%clk 0:00:07]} 40... bxa3 {[%clk 0:00:05.4]} 41. bxa3
{[%clk 0:00:07.9]} 41... Kg7 {[%clk 0:00:06.1]} 42. Kg3 {[%clk 0:00:07.1]} 42...
Kf6 {[%clk 0:00:06.7]} 43. Rg4 {[%clk 0:00:07.2]} 43... g5 {[%clk 0:00:07.1]}
44. Ra4 {[%clk 0:00:07.6]} 44... Nc7 {[%clk 0:00:06]} 45. Ra5 {[%clk 0:00:07.7]}
45... Be6 {[%clk 0:00:02.8]} 46. Rc5 {[%clk 0:00:08]} 46... Nb5 {[%clk
0:00:03.3]} 47. a4 {[%clk 0:00:06.7]} 47... Nd4 {[%clk 0:00:03.7]} 48. a5 {[%clk
0:00:05.1]} 48... Nb3 {[%clk 0:00:03.8]} 49. Rc6 {[%clk 0:00:04.8]} 49... Nxa5
{[%clk 0:00:04.3]} 50. Rxa6 {[%clk 0:00:04.7]} 50... Nc4 {[%clk 0:00:05.1]} 51.
Rc6 {[%clk 0:00:03.5]} 51... Ne5 {[%clk 0:00:05.6]} 52. Ra6 {[%clk 0:00:03.9]}
52... Nf7 {[%clk 0:00:06.2]} 53. Rb6 {[%clk 0:00:03.6]} 53... Nh6 {[%clk
0:00:06.6]} 54. Ra6 {[%clk 0:00:03.4]} 54... Nf5+ {[%clk 0:00:05.3]} 55. Kf3
{[%clk 0:00:03.8]} 55... Ng7 {[%clk 0:00:04.8]} 56. Kg3 {[%clk 0:00:02.8]} 56...
Kg6 {[%clk 0:00:03.5]} 57. Rb6 {[%clk 0:00:01.9]} 57... Kh5 {[%clk 0:00:02.9]}
58. Ra6 {[%clk 0:00:02.8]} 58... g4 {[%clk 0:00:03.1]} 59. Ra5+ {[%clk
0:00:01.5]} 59... Nf5+ {[%clk 0:00:03.4]} 60. Kf4 {[%clk 0:00:01.8]} 60... Kh4
{[%clk 0:00:04]} 0-1

[Event "Early-Titled-Tuesday-Blitz-April-23-2024"]
[Site "Chess.com"]
[Date "2024.04.23"]
[Round "1"]
[White "ccccvhhhj"]
[Black "Makswolf200817"]
[Result "0-1"]
[WhiteElo "2452"]
[BlackElo "2785"]
[TimeControl "180+1"]
[EndTime "8:08:27 PDT"]
[Termination "Makswolf200817 won on time"]

1. e4 {[%clk 0:03:00.9]} 1... c5 {[%clk 0:02:58.8]} 2. Nf3 {[%clk 0:03:00.9]}
2... d6 {[%clk 0:02:59]} 3. d4 {[%clk 0:03:01.5]} 3... cxd4 {[%clk 0:02:59.7]}
4. Nxd4 {[%clk 0:03:02.4]} 4... Nf6 {[%clk 0:03:00.1]} 5. Nc3 {[%clk 0:03:03.1]}
5... a6 {[%clk 0:03:00.8]} 6. Rg1 {[%clk 0:03:03.3]} 6... e5 {[%clk 0:02:57.1]}
7. Nb3 {[%clk 0:03:03.3]} 7... h5 {[%clk 0:02:56.7]} 8. h3 {[%clk 0:03:03.8]}
8... h4 {[%clk 0:02:44.2]} 9. Be3 {[%clk 0:03:03.5]} 9... Be6 {[%clk 0:02:42.1]}
10. Qd2 {[%clk 0:03:04.1]} 10... Be7 {[%clk 0:02:41.5]} 11. O-O-O {[%clk
0:03:04.4]} 11... Nbd7 {[%clk 0:02:39.8]} 12. f3 {[%clk 0:02:55.1]} 12... Rc8
{[%clk 0:02:34]} 13. Kb1 {[%clk 0:02:55.4]} 13... b5 {[%clk 0:02:31.7]} 14. Nd5
{[%clk 0:02:23.4]} 14... Nxd5 {[%clk 0:02:28.4]} 15. exd5 {[%clk 0:02:24.3]}
15... Bf5 {[%clk 0:02:29.1]} 16. Bd3 {[%clk 0:02:24.1]} 16... Bxd3 {[%clk
0:02:29]} 17. Qxd3 {[%clk 0:02:25]} 17... Bg5 {[%clk 0:02:29.2]} 18. g3 {[%clk
0:02:11.9]} 18... Bxe3 {[%clk 0:02:21.1]} 19. Qxe3 {[%clk 0:02:12.8]} 19... hxg3
{[%clk 0:02:20.3]} 20. Rxg3 {[%clk 0:02:13.1]} 20... g6 {[%clk 0:02:21]} 21. f4
{[%clk 0:02:06]} 21... Qh4 {[%clk 0:02:16.6]} 22. fxe5 {[%clk 0:01:55.6]} 22...
Nxe5 {[%clk 0:02:17.5]} 23. Nd4 {[%clk 0:01:46.2]} 23... Kf8 {[%clk 0:02:12.9]}
24. Rf1 {[%clk 0:01:32.1]} 24... Re8 {[%clk 0:01:47.8]} 25. Qf2 {[%clk 0:01:13]}
25... Rh7 {[%clk 0:01:16.3]} 26. a3 {[%clk 0:01:12.8]} 26... Kg8 {[%clk
0:01:10.7]} 27. Nf5 {[%clk 0:01:05.8]} 27... Qd8 {[%clk 0:01:09]} 28. Qf4 {[%clk
0:00:33.1]} 28... Qd7 {[%clk 0:00:43.8]} 29. Nh6+ {[%clk 0:00:23.9]} 29... Kf8
{[%clk 0:00:40.8]} 30. Ng4 {[%clk 0:00:24.8]} 30... Nxg4 {[%clk 0:00:38.2]} 31.
hxg4 {[%clk 0:00:24.5]} 31... Re5 {[%clk 0:00:35.8]} 32. Rd3 {[%clk 0:00:19.5]}
32... Qe7 {[%clk 0:00:34.4]} 33. Qf2 {[%clk 0:00:18.4]} 33... Re2 {[%clk
0:00:31.3]} 34. Qd4 {[%clk 0:00:17.5]} 34... Rhh2 {[%clk 0:00:28.6]} 35. Rc1
{[%clk 0:00:13.5]} 35... Kg8 {[%clk 0:00:27.3]} 36. Rc3 {[%clk 0:00:13.7]} 36...
Qd7 {[%clk 0:00:21.1]} 37. Qb6 {[%clk 0:00:11.8]} 37... Re5 {[%clk 0:00:13.5]}
38. Rc7 {[%clk 0:00:11.7]} 38... Qxg4 {[%clk 0:00:12.6]} 39. Qb8+ {[%clk
0:00:11.4]} 39... Kg7 {[%clk 0:00:12]} 40. Rc8 {[%clk 0:00:12.3]} 40... Rhe2
{[%clk 0:00:07.6]} 41. Rg8+ {[%clk 0:00:12.7]} 41... Kf6 {[%clk 0:00:08.1]} 42.
Qd8+ {[%clk 0:00:12.9]} 42... Kf5 {[%clk 0:00:08.2]} 43. Rf8 {[%clk 0:00:11.1]}
43... Ke4 {[%clk 0:00:04.2]} 44. Qxd6 {[%clk 0:00:10]} 44... f5 {[%clk
0:00:02.4]} 45. Qb4+ {[%clk 0:00:10.4]} 45... Kf3 {[%clk 0:00:02.4]} 46. Qc3+
{[%clk 0:00:03.7]} 46... R2e3 {[%clk 0:00:02.3]} 47. Qc5 {[%clk 0:00:03.2]}
47... Qe4 {[%clk 0:00:02.4]} 48. d6 {[%clk 0:00:02.9]} 48... Re1 {[%clk
0:00:02.7]} 49. Qc3+ {[%clk 0:00:01.5]} 49... Kg4 {[%clk 0:00:02.8]} 50. Qxe1
{[%clk 0:00:01.7]} 50... Qxe1 {[%clk 0:00:03.7]} 51. Rxe1 {[%clk 0:00:02.5]}
51... Rxe1+ {[%clk 0:00:04.4]} 52. Ka2 {[%clk 0:00:02.6]} 52... Rd1 {[%clk
0:00:05.3]} 53. Rf6 {[%clk 0:00:02.8]} 53... g5 {[%clk 0:00:05.8]} 54. Re6
{[%clk 0:00:02.6]} 54... f4 {[%clk 0:00:06.1]} 55. b3 {[%clk 0:00:03.1]} 55...
f3 {[%clk 0:00:06.4]} 56. c4 {[%clk 0:00:03.8]} 56... f2 {[%clk 0:00:06.4]} 57.
Rf6 {[%clk 0:00:03.9]} 57... f1=Q {[%clk 0:00:06.7]} 58. Rxf1 {[%clk 0:00:04.4]}
58... Rxf1 {[%clk 0:00:07.5]} 59. c5 {[%clk 0:00:05.3]} 59... Kf5 {[%clk
0:00:07.2]} 60. c6 {[%clk 0:00:05]} 60... Ke6 {[%clk 0:00:07.3]} 61. c7 {[%clk
0:00:05.9]} 61... Rc1 {[%clk 0:00:07.1]} 62. a4 {[%clk 0:00:05.6]} 62... Kxd6
{[%clk 0:00:07]} 0-1

[Event "Early-Titled-Tuesday-Blitz-April-23-2024"]
[Site "Chess.com"]
[Date "2024.04.23"]
[Round "1"]
[White "FGHSMN"]
[Black "english_player_89"]
[Result "1-0"]
[WhiteElo "2926"]
[BlackElo "2525"]
[TimeControl "180+1"]
[EndTime "8:08:28 PDT"]
[Termination "FGHSMN won by resignation"]

1. e4 {[%clk 0:03:00.9]} 1... e5 {[%clk 0:02:59.1]} 2. Nf3 {[%clk 0:03:00.7]}
2... Nc6 {[%clk 0:02:59.7]} 3. Bc4 {[%clk 0:03:01.2]} 3... Bc5 {[%clk
0:02:59.4]} 4. d3 {[%clk 0:03:01.4]} 4... Nf6 {[%clk 0:02:59.8]} 5. O-O {[%clk
0:03:00.7]} 5... d6 {[%clk 0:03:00.4]} 6. c3 {[%clk 0:02:58.3]} 6... O-O {[%clk
0:03:00.2]} 7. h3 {[%clk 0:02:56.6]} 7... a5 {[%clk 0:02:59.9]} 8. Re1 {[%clk
0:02:49.7]} 8... h6 {[%clk 0:02:55.2]} 9. Nbd2 {[%clk 0:02:49.4]} 9... Re8
{[%clk 0:02:54.5]} 10. Nf1 {[%clk 0:02:48.6]} 10... Bd7 {[%clk 0:02:35.3]} 11.
Ng3 {[%clk 0:02:44.3]} 11... Qb8 {[%clk 0:02:34.7]} 12. a4 {[%clk 0:02:37.9]}
12... Qa7 {[%clk 0:02:34.1]} 13. Be3 {[%clk 0:02:35]} 13... Bxe3 {[%clk
0:02:29.4]} 14. Rxe3 {[%clk 0:02:32.8]} 14... Ne7 {[%clk 0:02:29.7]} 15. Nh4
{[%clk 0:02:27.6]} 15... d5 {[%clk 0:02:19.6]} 16. Bb3 {[%clk 0:02:22.8]} 16...
dxe4 {[%clk 0:02:17.2]} 17. dxe4 {[%clk 0:02:18.9]} 17... Rad8 {[%clk
0:02:10.8]} 18. Qc2 {[%clk 0:02:10.6]} 18... Qb6 {[%clk 0:02:08.2]} 19. Rae1
{[%clk 0:01:44.7]} 19... Be6 {[%clk 0:02:04.5]} 20. Bxe6 {[%clk 0:01:44.4]}
20... Qxe6 {[%clk 0:02:05.4]} 21. Ngf5 {[%clk 0:01:40]} 21... Nxf5 {[%clk
0:01:59.4]} 22. Nxf5 {[%clk 0:01:40.9]} 22... Kh7 {[%clk 0:01:53.5]} 23. Qe2
{[%clk 0:01:31.7]} 23... g6 {[%clk 0:01:44.5]} 24. Nh4 {[%clk 0:01:30.6]} 24...
Rd6 {[%clk 0:01:39]} 25. Qb5 {[%clk 0:01:25.5]} 25... b6 {[%clk 0:01:12.6]} 26.
Rf3 {[%clk 0:01:02.5]} 26... Red8 {[%clk 0:00:53]} 27. Rfe3 {[%clk 0:00:47.1]}
27... Re8 {[%clk 0:00:31.5]} 28. Nf3 {[%clk 0:00:45]} 28... Qd7 {[%clk
0:00:29.6]} 29. Qc4 {[%clk 0:00:41.2]} 29... Rc6 {[%clk 0:00:24.1]} 30. Qe2
{[%clk 0:00:39]} 30... Rd6 {[%clk 0:00:21.6]} 31. Qc2 {[%clk 0:00:38.1]} 31...
Nh5 {[%clk 0:00:17.8]} 32. c4 {[%clk 0:00:36.8]} 32... Nf4 {[%clk 0:00:17.1]}
33. c5 {[%clk 0:00:36.6]} 33... Rc6 {[%clk 0:00:16.6]} 34. Rc3 {[%clk
0:00:35.6]} 34... Ree6 {[%clk 0:00:14.5]} 35. Rd1 {[%clk 0:00:35]} 35... Qe7
{[%clk 0:00:12.6]} 36. cxb6 {[%clk 0:00:33.3]} 36... Rxc3 {[%clk 0:00:12.6]} 37.
bxc3 {[%clk 0:00:31.3]} 37... cxb6 {[%clk 0:00:12.7]} 38. Kh2 {[%clk 0:00:30.9]}
38... Qf6 {[%clk 0:00:13.1]} 39. c4 {[%clk 0:00:28.7]} 39... Rc6 {[%clk
0:00:12]} 40. Qc3 {[%clk 0:00:27.5]} 40... Rc5 {[%clk 0:00:09.9]} 41. g3 {[%clk
0:00:26]} 41... Ne2 {[%clk 0:00:09.7]} 42. Qe3 {[%clk 0:00:25]} 42... Nd4 {[%clk
0:00:06.6]} 43. Nxd4 {[%clk 0:00:25.2]} 43... exd4 {[%clk 0:00:07.5]} 44. Rxd4
{[%clk 0:00:26]} 44... Qe7 {[%clk 0:00:06.3]} 45. Qb3 {[%clk 0:00:23.2]} 45...
Qc7 {[%clk 0:00:06]} 46. f4 {[%clk 0:00:18.7]} 46... Qc6 {[%clk 0:00:06.3]} 47.
Kg2 {[%clk 0:00:18.9]} 47... h5 {[%clk 0:00:06.7]} 48. Kf3 {[%clk 0:00:19.3]}
48... h4 {[%clk 0:00:07.2]} 49. g4 {[%clk 0:00:19.5]} 49... Qf6 {[%clk
0:00:06.8]} 50. Qd3 {[%clk 0:00:18.8]} 50... Qc6 {[%clk 0:00:07.1]} 51. Rd7
{[%clk 0:00:19.1]} 51... Kg8 {[%clk 0:00:06.5]} 52. Rd8+ {[%clk 0:00:19.1]}
52... Kg7 {[%clk 0:00:06.7]} 53. Qd4+ {[%clk 0:00:19.7]} 53... Qf6 {[%clk
0:00:06.2]} 54. Rg8+ {[%clk 0:00:19.7]} 54... Kxg8 {[%clk 0:00:04.2]} 55. Qxf6
{[%clk 0:00:20.6]} 55... Rxc4 {[%clk 0:00:04.9]} 56. Qxh4 {[%clk 0:00:20.8]}
56... Rxa4 {[%clk 0:00:04.6]} 57. Qd8+ {[%clk 0:00:21.5]} 57... Kg7 {[%clk
0:00:03.5]} 58. Qxb6 {[%clk 0:00:22.4]} 58... Rb4 {[%clk 0:00:04]} 59. Qxa5
{[%clk 0:00:22.2]} 59... Rb3+ {[%clk 0:00:04.9]} 60. Kg2 {[%clk 0:00:22.7]}
60... g5 {[%clk 0:00:05]} 61. Qxg5+ {[%clk 0:00:22.2]} 61... Kh7 {[%clk
0:00:05.1]} 62. h4 {[%clk 0:00:21.9]} 62... f6 {[%clk 0:00:05.4]} 63. Qxf6
{[%clk 0:00:20.3]} 63... Re3 {[%clk 0:00:05.1]} 64. e5 {[%clk 0:00:20.3]} 64...
Re4 {[%clk 0:00:04.6]} 65. Qf5+ {[%clk 0:00:20.3]} 65... Kh6 {[%clk 0:00:04.7]}
66. Qxe4 {[%clk 0:00:21.2]} 66... Kg7 {[%clk 0:00:04.5]} 67. f5 {[%clk
0:00:21.5]} 1-0

[Event "Early-Titled-Tuesday-Blitz-April-23-2024"]
[Site "Chess.com"]
[Date "2024.04.23"]
[Round "1"]
[White "Iball95"]
[Black "Rosh1610"]
[Result "1-0"]
[WhiteElo "2868"]
[BlackElo "2493"]
[TimeControl "180+1"]
[EndTime "8:08:32 PDT"]
[Termination "Iball95 won by checkmate"]

1. e4 {[%clk 0:02:59]} 1... e5 {[%clk 0:02:58.9]} 2. Nf3 {[%clk 0:02:59.9]} 2...
Nc6 {[%clk 0:02:58.6]} 3. Nc3 {[%clk 0:03:00.4]} 3... Nf6 {[%clk 0:02:58.2]} 4.
Bb5 {[%clk 0:03:00.7]} 4... Bb4 {[%clk 0:02:57.9]} 5. Nd5 {[%clk 0:03:00.8]}
5... Bc5 {[%clk 0:02:51.5]} 6. O-O {[%clk 0:02:59.6]} 6... O-O {[%clk
0:02:51.1]} 7. d4 {[%clk 0:02:59.1]} 7... Nxd4 {[%clk 0:02:40]} 8. Nxd4 {[%clk
0:02:58.4]} 8... exd4 {[%clk 0:02:32.8]} 9. Bg5 {[%clk 0:02:57.4]} 9... Be7
{[%clk 0:02:33.4]} 10. Nxe7+ {[%clk 0:02:57.8]} 10... Qxe7 {[%clk 0:02:34]} 11.
Qxd4 {[%clk 0:02:58.2]} 11... h6 {[%clk 0:02:25.8]} 12. Bh4 {[%clk 0:02:50.7]}
12... d6 {[%clk 0:02:24.5]} 13. f4 {[%clk 0:02:47.2]} 13... c6 {[%clk
0:02:11.5]} 14. Bd3 {[%clk 0:02:45.5]} 14... Re8 {[%clk 0:02:08.9]} 15. Rae1
{[%clk 0:02:42.5]} 15... c5 {[%clk 0:02:08.6]} 16. Qc3 {[%clk 0:02:42.4]} 16...
Qe6 {[%clk 0:02:05.7]} 17. Bc4 {[%clk 0:02:12.5]} 17... Qe7 {[%clk 0:02:03.3]}
18. e5 {[%clk 0:02:07.8]} 18... Ne4 {[%clk 0:01:57.5]} 19. Bxe7 {[%clk 0:01:56]}
19... Nxc3 {[%clk 0:01:57.3]} 20. exd6 {[%clk 0:01:12]} 20... b5 {[%clk
0:01:54.5]} 21. Bd3 {[%clk 0:00:52]} 21... c4 {[%clk 0:01:23.3]} 22. bxc3 {[%clk
0:00:48.9]} 22... cxd3 {[%clk 0:01:23.5]} 23. cxd3 {[%clk 0:00:49.8]} 23... Bd7
{[%clk 0:01:19.3]} 24. c4 {[%clk 0:00:43.1]} 24... bxc4 {[%clk 0:01:19.2]} 25.
dxc4 {[%clk 0:00:43.6]} 25... Rec8 {[%clk 0:01:19.9]} 26. Rc1 {[%clk 0:00:43.2]}
26... f6 {[%clk 0:01:19.9]} 27. Rfe1 {[%clk 0:00:39.6]} 27... Rc5 {[%clk
0:01:18.4]} 28. Red1 {[%clk 0:00:29.5]} 28... Rac8 {[%clk 0:01:15.9]} 29. Rd4
{[%clk 0:00:30]} 29... Rb8 {[%clk 0:00:52.6]} 30. Rc2 {[%clk 0:00:29.7]} 30...
Rb4 {[%clk 0:00:46.6]} 31. Kf2 {[%clk 0:00:29.6]} 31... Kf7 {[%clk 0:00:45.9]}
32. h3 {[%clk 0:00:29.1]} 32... a5 {[%clk 0:00:33.2]} 33. g4 {[%clk 0:00:27.1]}
33... a4 {[%clk 0:00:32]} 34. Ke3 {[%clk 0:00:26.9]} 34... a3 {[%clk 0:00:32.4]}
35. Kd2 {[%clk 0:00:27.2]} 35... Rb8 {[%clk 0:00:26.2]} 36. Rd3 {[%clk
0:00:25.3]} 36... Ba4 {[%clk 0:00:24.3]} 37. Rcc3 {[%clk 0:00:21.4]} 37... Rb2+
{[%clk 0:00:22.8]} 38. Ke3 {[%clk 0:00:21.6]} 38... Bd7 {[%clk 0:00:18.5]} 39.
Rxa3 {[%clk 0:00:20.6]} 39... Rxc4 {[%clk 0:00:18.8]} 40. Ra7 {[%clk 0:00:21]}
40... Ke8 {[%clk 0:00:17.9]} 41. Ra8+ {[%clk 0:00:20.3]} 41... Kf7 {[%clk
0:00:18.2]} 42. Ra7 {[%clk 0:00:20.9]} 42... Ke8 {[%clk 0:00:18.4]} 43. Rb3
{[%clk 0:00:12]} 43... Rxb3+ {[%clk 0:00:17.8]} 44. axb3 {[%clk 0:00:12.9]}
44... Rb4 {[%clk 0:00:18.2]} 45. Ra8+ {[%clk 0:00:12.1]} 45... Kf7 {[%clk
0:00:18.2]} 46. Ra3 {[%clk 0:00:11.8]} 46... h5 {[%clk 0:00:12.7]} 47. gxh5
{[%clk 0:00:12.7]} 47... Bxh3 {[%clk 0:00:13.2]} 48. Ra7 {[%clk 0:00:12.1]}
48... Rxb3+ {[%clk 0:00:12.7]} 49. Kd4 {[%clk 0:00:12.2]} 49... Ke8 {[%clk
0:00:13.2]} 50. Ra8+ {[%clk 0:00:10]} 50... Kf7 {[%clk 0:00:13.2]} 51. Rf8+
{[%clk 0:00:10.4]} 51... Ke6 {[%clk 0:00:13.3]} 52. Rg8 {[%clk 0:00:11]} 52...
Bf5 {[%clk 0:00:10.2]} 53. Rxg7 {[%clk 0:00:10.4]} 53... Rh3 {[%clk 0:00:08.2]}
54. Bf8 {[%clk 0:00:08.7]} 54... Rxh5 {[%clk 0:00:03.5]} 55. d7 {[%clk 0:00:09]}
55... Rh3 {[%clk 0:00:01.5]} 56. Re7+ {[%clk 0:00:09.4]} 56... Kd6 {[%clk
0:00:01.7]} 57. d8=Q+ {[%clk 0:00:10.3]} 57... Kc6 {[%clk 0:00:01.9]} 58. Rc7+
{[%clk 0:00:11.2]} 58... Kb6 {[%clk 0:00:02.6]} 59. Qb8+ {[%clk 0:00:10.7]}
59... Ka6 {[%clk 0:00:03.5]} 60. Ra7# {[%clk 0:00:11]} 1-0